Cogmind - Beta 9.6 @@@ ROGUE MODE // 2020.09.11 @ 11:25:15 Player: derk Result: Self-destructed Performance ------------- Evolutions (8) 4000 Regions Visited (18) 3600 Robots Destroyed (252) 1260 Value Destroyed (13680) 13680 Prototype IDs (50) 1000 Alien Tech Used (0) 0 Bonus (4594) 4594 TOTAL SCORE: 28134 Bonus ------- High Alert Combat Kills 1864 Follower Combat Kills 1111 Entered Garrisons 400 Used RIF Installer 1000 Scanned by Researcher 500 Friendly Fire -281 Cogmind --------- Core Integrity 119/1450 Matter 567/700 Energy 218/415 System Corruption 37% Temperature Cool (260) Movement Core (750) Ox14 Location -2/Testing Parts ------- > --- POWER (2) -------- Reinforced Antimatter Reactor Light Quantum Reactor > --- PROPULSION (3) --- (None) > --- UTILITY (16) ----- Advanced Heat Sink Advanced Matter Compressor Experimental Optical Array Advanced Hacking Suite Relay Coupler [NC] (31) Relay Coupler [Swarmer] (29) Relay Coupler [Swarmer] (47) Relay Coupler [Hunter] (1) > --- WEAPON (2) ------- (None) > --- INVENTORY (4) ---- Relay Coupler [NC] (31) Advanced Remote Datajack Portable AFG (63) Peak State ------------ > --- POWER ------------ Particle Reactor Light Quantum Reactor > --- PROPULSION ------- Biometal Heavy Treads High-density Centrium Wheel > --- UTILITY ---------- Advanced Coolant Injector Large Storage Unit High-capacity Storage Unit High-capacity Storage Unit Experimental Optical Array Light Regenerative Plating Heavy Regenerative Plating SHELL Armor Advanced Hacking Suite Relay Coupler [NC] Relay Coupler [Swarmer] Relay Coupler [Brawler] Relay Coupler [Hunter] > --- WEAPON ----------- Enhanced Nova Cannon Advanced Remote Datajack > --- INVENTORY -------- Particle Reactor Light Particle Reactor Light Quantum Reactor Biometal Heavy Treads Myomer Leg Large Matter Pod Advanced Matter Compressor Advanced ECM Suite Heavy Regenerative Plating Relay Coupler [NC] Relay Coupler [NC] Relay Coupler [NC] Relay Coupler [Swarmer] Relay Coupler [Swarmer] Phase Gun Quantum Rifle Railgun Hardcell Cannon Advanced Remote Datajack Advanced Remote Datajack Phasing Sabre Portable AFG [Rating: 162] Favorites ----------- Power Antimatter Reactor Engine Ion Engine Power Core Micro Nuclear Core Reactor Antimatter Reactor Propulsion Light Treads Treads Light Treads Leg Improved Titanium Leg Wheel Armored Wheel Utility High-capacity Storage Unit Device Improved Cooling System Storage High-capacity Storage Unit Processor Advanced Targeting Computer Hackware Relay Coupler [NC] Protection Damper Plating Weapon Remote Datajack Energy Gun Advanced Beam Rifle Energy Cannon Cooled Particle Cannon Ballistic Gun KE Penetrator Ballistic Cannon Light Cannon Launcher Mini Grenade Launcher Special Weapon Remote Datajack Impact Weapon Heavy Hammer Slashing Weapon Phasing Sabre Piercing Weapon Heavy Pick Build | -11 -10 -9 -8 -7 -7 -7 -7 -6 -6 -6 -5 -4 -4 -4 -4 -3 -2 -2 ------- Run | Scr Mat Mat Mat Fac Gar Fac Gar Fac Was Fac Fac Fac Was Fac Ext Res Res Tes Slots Evolved 16 | . . 2 2 2 . . . 2 . . 2 2 . . . 2 2 . Power 1 | . . . . . . . . . . . . . . . . . 1 . Propulsion 1 | . . . 1 . . . . . . . . . . . . . . . Utility 14 | . . 2 1 2 . . . 2 . . 2 2 . . . 2 1 . Weapon . | . . . . . . . . . . . . . . . . . . . Parts Attached 386 | 7 11 23 25 2 39 32 18 5 6 8 8 53 17 4 12 45 13 58 Power 50 | 1 1 2 5 . 5 5 2 . 2 . 1 6 3 . . 4 3 10 Engine 14 | 1 1 2 2 . 4 4 . . . . . . . . . . . . Core 8 | . . . 3 . 1 1 2 . . . . 1 . . . . . . Reactor 28 | . . . . . . . . . 2 . 1 5 3 . . 4 3 10 Propulsion 70 | 2 4 7 6 . 8 13 2 1 1 . 1 7 2 . 4 4 1 7 Treads 42 | 2 2 7 4 . 7 . . . 1 . 1 3 1 . 4 3 1 6 Leg 18 | . . . . . 1 13 . 1 . . . 2 . . . . . 1 Wheel 10 | . 2 . 2 . . . 2 . . . . 2 1 . . 1 . . Hover . | . . . . . . . . . . . . . . . . . . . Flight . | . . . . . . . . . . . . . . . . . . . Utility 146 | 2 3 8 7 2 19 3 8 2 3 7 5 12 8 4 5 21 7 20 Device 49 | . . 2 2 . 10 1 1 . 1 . 1 5 4 2 1 11 3 5 Storage 28 | 2 3 3 2 . 1 . 1 . 1 3 . . 1 . 1 5 2 3 Processor 9 | . . 1 1 . . 1 1 . . . 1 . . . 1 1 1 1 Hackware 29 | . . . . . 1 1 4 2 1 4 3 4 2 . . 2 1 4 Protection 31 | . . 2 2 2 7 . 1 . . . . 3 1 2 2 2 . 7 Artifact . | . . . . . . . . . . . . . . . . . . . Weapon 120 | 2 3 6 7 . 7 11 6 2 . 1 1 28 4 . 3 16 2 21 Energy Gun 15 | 1 1 1 2 . 2 1 1 . . . . . . . . . . 6 Energy Cannon 34 | . . . 2 . 3 . . 1 . . 1 11 1 . 3 7 2 3 Ballistic Gun 21 | 1 1 1 . . . . 1 . . . . 5 1 . . 3 . 8 Ballistic Cannon 9 | . 1 2 . . . 4 1 . . . . . . . . . . 1 Launcher 11 | . . . 3 . . 3 1 . . . . 4 . . . . . . Special Weapon 18 | . . . . . 1 3 2 1 . 1 . 4 1 . . 3 . 2 Impact Weapon 3 | . . 2 . . 1 . . . . . . . . . . . . . Slashing Weapon 4 | . . . . . . . . . . . . . . . . 3 . 1 Piercing Weapon 5 | . . . . . . . . . . . . 4 1 . . . . . Special Melee Weapon . | . . . . . . . . . . . . . . . . . . . Unidentified Prototypes 16 | . . . 2 . 1 1 1 1 . . . . . 1 . 6 2 1 Parts Lost 124 | . 1 5 7 . 14 7 4 . . . 1 12 1 . . 19 5 48 Power 23 | . . 2 2 . 1 2 2 . . . . 1 . . . 3 1 9 Propulsion 23 | . . 1 3 . 3 2 . . . . . 4 . . . 2 . 8 Utility 41 | . . . 1 . 6 . 1 . . . 1 3 1 . . 8 2 18 Weapon 37 | . 1 2 1 . 4 3 1 . . . . 4 . . . 6 2 13 Highest Loss Streak 16 | . 1 2 4 . 5 4 3 . . . 1 6 1 . . 7 5 16 Average Slot Usage (%) 89 | . 99 97 99 92 94 97 95 99 94 92 92 83 84 78 80 80 89 72 Engine 2 | . 13 10 3 . 3 4 . . . . . . . . . . . . Core 1 | . . . 4 7 3 2 5 6 1 . . . . . . . . . Reactor 3 | . . . . . . . . . 4 6 5 4 5 5 5 4 7 7 Treads 8 | . 13 20 18 7 16 4 . . 4 6 5 6 1 5 7 5 4 6 Leg 1 | . . . . . 1 16 14 6 1 . . 1 3 . . . . . Wheel 3 | . 14 1 8 7 . . 8 13 7 6 5 1 3 . . 2 4 2 Device 7 | . . 6 8 7 11 7 7 6 6 4 2 6 11 9 10 12 12 5 Storage 19 | . 28 25 27 23 23 23 23 20 22 21 17 15 13 10 10 14 19 13 Processor 3 | . . 1 4 7 7 7 7 6 6 4 1 . . . . 1 7 4 Hackware 18 | . . . . . . 13 11 25 23 27 41 31 32 32 31 24 23 17 Protection 3 | . . 9 4 15 10 . . . . . . 3 1 5 5 3 . 5 Energy Gun 1 | . 10 3 3 . 5 2 1 . . . . . . . . . . . Energy Cannon 3 | . . . 7 7 5 . . 3 6 6 8 4 . . 3 4 4 . Ballistic Gun 1 | . 11 1 . . . . . . . . . 1 1 . . . . 2 Ballistic Cannon 2 | . 5 13 . . . 5 6 2 . . . . . . . . . 1 Special Weapon 2 | . . . . . . 4 3 3 6 6 2 2 4 5 4 1 4 1 Naked Turns . | . . . . . . . . . . . . . . . . . . . Heaviest Build 187 | 15 56 78 100 101 106 99 96 97 111 127 130 175 137 139 152 170 140 187 Greatest Support 105 | 40 40 40 40 10 60 60 55 24 70 70 70 105 70 70 98 98 87 87 Greatest Overweight (x) 32 | . 1 1 9 10 32 4 7 4 4 1 1 9 11 1 2 8 6 3 Average Overweight (x) 1 | . . 1 5 10 2 1 2 3 1 1 1 1 5 1 1 3 1 1 Largest Inventory Capacity 32 | 8 18 24 26 26 26 26 32 26 26 28 28 28 28 20 20 26 30 26 Average Capacity 24 | 6 13 19 25 26 26 26 26 26 26 27 28 28 21 20 20 22 26 23 Most Carried 28 | 6 18 24 26 21 26 26 26 26 26 28 28 28 22 20 20 25 25 24 Average Carried 22 | 3 10 17 23 20 22 25 24 25 25 26 26 25 19 19 19 19 22 19 Final Capacity 28 | 8 18 24 26 26 26 26 26 26 26 28 28 28 20 20 20 26 26 4 Final Carried 28 | 6 18 24 22 20 26 25 26 26 26 28 26 23 20 20 20 21 22 3 Class Distribution -------------------- 74% | Bothacker-Mutant 12% | Hauler-Mutant 9% | Mutant 3% | Scavenger-Mutant Dominant Class ---------------- Mutant | -10/Materials Mutant | -9/Materials Hauler-Mutant | -8/Materials Hauler-Mutant | -7/Factory Bothacker-Mutant | -7/Garrison Bothacker-Mutant | -7/Factory Bothacker-Mutant | -7/Garrison Bothacker-Mutant | -6/Factory Bothacker-Mutant | -6/Waste Bothacker-Mutant | -6/Factory Bothacker-Mutant | -5/Factory Bothacker-Mutant | -4/Factory Bothacker-Mutant | -4/Waste Bothacker-Mutant | -4/Factory Bothacker-Mutant | -4/Extension Bothacker-Mutant | -3/Research Bothacker-Mutant | -2/Research Bothacker-Mutant | -2/Testing Resources | -11 -10 -9 -8 -7 -7 -7 -7 -6 -6 -6 -5 -4 -4 -4 -4 -3 -2 -2 ----------- Run | Scr Mat Mat Mat Fac Gar Fac Gar Fac Was Fac Fac Fac Was Fac Ext Res Res Tes Matter Collected 8025 | 272 165 761 364 . 487 559 646 . 170 145 107 1128 533 . 310 1167 105 1106 Remotely . | . . . . . . . . . . . . . . . . . . . Salvage Created 13948 | 56 220 786 757 . 1323 202 499 . 1700 101 346 2159 1709 . 303 1672 154 1961 Parts 543 | 4 24 41 49 . 57 8 15 . 25 9 19 95 39 . 11 64 5 78 Haulers Intercepted 2 | . . 1 1 . . . . . . . . . . . . . . . Recyclers Shooed 4 | . . . 2 . . . . . . . . . . . . 2 . . Parts Field Recycled . | . . . . . . . . . . . . . . . . . . . Retrieved Matter . | . . . . . . . . . . . . . . . . . . . Parts Self-Destructed . | . . . . . . . . . . . . . . . . . . . Prevented . | . . . . . . . . . . . . . . . . . . . Kills | -11 -10 -9 -8 -7 -7 -7 -7 -6 -6 -6 -5 -4 -4 -4 -4 -3 -2 -2 ------- Run | Scr Mat Mat Mat Fac Gar Fac Gar Fac Was Fac Fac Fac Was Fac Ext Res Res Tes Combat Hostiles Destroyed 216 | . 8 21 28 . 29 8 9 . 6 2 6 35 6 . 4 27 2 25 Melee 11 | . . . . . . . . . . . . 5 6 . . . . . Guns 47 | . 6 5 2 . 6 1 . . . . . 8 . . . 5 . 14 Cannons 112 | . 2 15 8 . 16 3 7 . 6 2 6 11 . . 3 21 2 10 AOE 41 | . . 1 18 . 7 4 2 . . . . 9 . . . . . . Classes Destroyed 19 | 1 5 3 3 . 2 2 . . 1 . . . . . . 1 . 1 Worker 9 | . . . 1 . . . . . . . . 5 . . . . . 3 Builder 8 | . 1 . 1 . . . . . . . . 4 . . . 1 . 1 Tunneler 1 | . . . . . . 1 . . . . . . . . . . . . Hauler 2 | . . 1 1 . . . . . . . . . . . . . . . Recycler 4 | 1 . . 2 . . . . . . . . . . . . 1 . . Mechanic 3 | . . . 1 . . 1 . . . . . 1 . . . . . . Operator 2 | . 1 . 1 . . . . . . . . . . . . . . . Watcher 3 | . 1 . 2 . . . . . . . . . . . . . . . Swarmer 35 | . 5 3 12 . 7 3 . . . . . . . . . 4 . 1 Grunt 78 | . 3 10 9 . 11 3 8 . . . 1 17 . . . 10 . 6 Brawler 4 | . . 1 . . 1 1 . . . . . . . . . . . 1 Duelist 4 | . . . . . 1 . . . . . . . . . . . . 3 Protector 1 | . . . . . . 1 . . . . . . . . . . . . Researcher 2 | . . . . . . . . . . . . . . . . . . 2 Sentry 33 | . . 7 5 . 8 . . . . . 1 3 . . 2 3 . 4 Hunter 21 | . . . 2 . . . 2 . 1 1 . 2 . . 2 4 2 5 Programmer 29 | . . . . . 1 . . . . 1 4 13 . . . 5 . 5 Behemoth 1 | . . . . . . . . . . . . . . . . 1 . . Compactor 12 | . . . . . . . . . 6 . . . 6 . . . . . Best Kill Streak 9 | 1 3 4 9 . 9 4 3 . 1 1 2 7 2 . 1 6 2 8 Combat Bots Only 9 | . 3 4 5 . 9 3 3 . 1 1 2 6 2 . 1 4 2 3 Max Kills in Single Turn 4 | 1 2 1 4 . 3 2 2 . 1 1 1 3 1 . 1 1 1 2 Gunslinging 1 | . 1 . . . . . . . . . . . . . . . . . Exploded 3 | . . 1 3 . 3 2 1 . . . . 2 . . . . . . Melee 1 | . . . . . . . . . . . . 1 1 . . . . . Uniques/NPCs Destroyed . | . . . . . . . . . . . . . . . . . . . Combat | -11 -10 -9 -8 -7 -7 -7 -7 -6 -6 -6 -5 -4 -4 -4 -4 -3 -2 -2 -------- Run | Scr Mat Mat Mat Fac Gar Fac Gar Fac Was Fac Fac Fac Was Fac Ext Res Res Tes Damage Taken 31960 | . 308 1044 1375 . 2307 881 940 . . 59 1462 6099 77 254 905 4833 503 10913 Core 3757 | . 38 332 274 . 166 106 223 . . . 204 545 . 36 11 491 94 1237 Absorbed by Shields 102 | . . . . . 46 . . . . . . 13 . . 43 . . . Core Remaining (%) 63 | 100 84 17 50 . . . 29 . . 100 79 . . . 48 62 . . Volleys Fired 1144 | 2 26 57 61 . 90 28 91 . 123 20 39 149 74 3 42 162 12 165 Largest 2 | 2 2 2 2 . 2 2 2 . 1 1 2 2 1 1 2 2 1 2 Hottest 196 | 60 85 86 131 . 130 128 78 . 30 90 120 165 75 40 196 196 120 155 Shots Fired 1460 | 4 51 109 79 . 135 34 95 . 123 20 53 185 68 3 46 207 12 236 Gun 476 | 4 39 47 18 . 46 6 30 . . . . 60 45 . . 38 . 143 Cannon 799 | . 12 62 37 . 83 15 55 . 113 7 49 78 16 . 36 150 12 74 Launcher 58 | . . . 24 . 6 8 4 . . . . 16 . . . . . . Special 127 | . . . . . . 5 6 . 10 13 4 31 7 3 10 19 . 19 Kinetic 463 | 2 29 80 2 . . 15 55 . . . . 60 45 . . 38 . 137 Thermal 728 | 2 22 29 52 . 129 6 30 . 113 7 49 39 . . 26 142 8 74 Explosive 58 | . . . 24 . 6 8 4 . . . . 16 . . . . . . Electromagnetic 84 | . . . 1 . . . . . . . . 39 16 . 10 8 4 6 Robot Hit Streak 40 | 3 7 27 11 . 34 8 32 . 40 25 32 23 7 2 9 29 2 19 Robot Miss Streak 5 | . 5 1 3 . 2 2 2 . 2 . 2 4 2 1 5 4 1 4 Penetration Max 1 | . . . . . . . . . . . . 1 . . . 1 . 1 Secondary Targets 7 | . 1 . . . . . . . . . . 1 . . . . . 5 Max Gunslinging Chain 1 | . 1 . . . . . . . . . . 1 . . . . . 1 Shots Hit Robots 1104 | 3 32 78 48 . 105 21 77 . 108 20 33 148 72 2 28 157 8 164 Core Hits 501 | 2 15 33 64 . 56 27 34 . 19 2 12 87 16 . 9 55 5 65 Critical Hits 33 | . . 2 1 . 1 . 2 . . . 1 8 3 . . 8 . 7 Critical Kills 11 | . . 1 . . . . 1 . . . 1 2 1 . . 1 . 4 Critical Parts Destroyed 18 | . . 1 1 . 1 . 1 . . . . 5 1 . . 5 . 3 Melee Attacks 76 | . . 1 . . 2 . . . . . . 28 26 2 . 10 . 7 Impact 3 | . . 1 . . 2 . . . . . . . . . . . . . Slashing 17 | . . . . . . . . . . . . . . . . 10 . 7 Piercing 56 | . . . . . . . . . . . . 28 26 2 . . . . Sneak Attacks 27 | . . . . . . . . . . . . 1 26 . . . . . Combat Hostiles 26 | . . . . . . . . . . . . . 26 . . . . . Follow-up Attacks . | . . . . . . . . . . . . . . . . . . . Damage Inflicted 38314 | 30 373 1289 3714 . 3429 1312 1696 . 2828 299 1267 7216 2488 . 757 5669 413 5534 Guns 8876 | 28 230 503 210 . 740 173 441 . . . . 1330 1074 . . 1065 . 3082 Cannons 19120 | . 143 765 600 . 1893 189 893 . 2828 299 1074 2489 32 . 757 4604 413 2141 Explosions 8269 | . . 21 2904 . 796 950 362 . . . 186 2666 73 . . . . 311 Melee 1948 | . . . . . . . . . . . . 683 1265 . . . . . Ramming 101 | 2 . . . . . . . . . . 7 48 44 . . . . . Kinetic 8756 | 16 229 924 . . . 189 893 . . . . 1330 1074 . . 1065 . 3036 Thermal 17636 | 12 144 344 810 . 2633 173 441 . 2828 299 1260 1476 73 . 517 4289 304 2033 Explosive 8010 | . . 21 2904 . 796 950 362 . . . . 2666 . . . . . 311 Electromagnetic 1863 | . . . . . . . . . . . . 1013 32 . 240 315 109 154 Impact . | . . . . . . . . . . . . . . . . . . . Slashing . | . . . . . . . . . . . . . . . . . . . Piercing 1948 | . . . . . . . . . . . . 683 1265 . . . . . Highest Corruption 51 | . . 9 . . . . . . . . 11 10 51 51 51 2 . 37 Average Corruption 16 | . . 8 . . . . . . . . 7 2 39 51 51 1 . 16 Corruption Purged . | . . . . . . . . . . . . . . . . . . . Effects 404 | . . 70 . . . . . . . . 28 9 92 29 78 5 . 93 Message Errors 64 | . . 16 . . . . . . . . 11 3 13 5 7 . . 9 Matter Fused 39 | . . 10 . . . . . . . . 4 1 6 2 6 . . 10 Heat Flow Errors 37 | . . 12 . . . . . . . . 2 . 5 4 4 . . 10 Energy Discharges 28 | . . 7 . . . . . . . . 2 . 4 3 8 . . 4 Parts Rejected 7 | . . . . . . . . . . . . . 4 . 1 . . 2 Data Loss (minor) 27 | . . 5 . . . . . . . . 5 . 5 1 5 2 . 4 Data Loss (major) 15 | . . 4 . . . . . . . . 2 . 3 2 1 . . 3 Misfires 4 | . . 1 . . . . . . . . 1 . . . 1 . . 1 Alerts 3 | . . . . . . . . . . . . . . 1 1 . . 1 Misdirections 38 | . . . . . . . . . . . 1 . 10 8 14 . . 5 Targeting Errors 123 | . . 13 . . . . . . . . . 3 36 3 25 3 . 40 Weapon Failures 19 | . . 2 . . . . . . . . . 2 6 . 5 . . 4 Overload Shots 25 | . . . . . . . . . . 3 5 17 . . . . . . Effects 2 | . . . . . . . . . . . 1 1 . . . . . . Short Circuit 2 | . . . . . . . . . . . 1 1 . . . . . . Overflow Damage 1535 | . . . 189 . 75 25 . . . 61 203 582 . . 4 166 . 230 Projectiles 816 | . . . 8 . 54 8 . . . 61 54 363 . . 4 166 . 98 Explosions 719 | . . . 181 . 21 17 . . . . 149 219 . . . . . 132 Melee . | . . . . . . . . . . . . . . . . . . . Knockbacks 31 | . 5 5 . . . 3 6 . . . . . . . . . . 12 Impact . | . . . . . . . . . . . . . . . . . . . Kinetic 30 | . 5 5 . . . 3 6 . . . . . . . . . . 11 Secondary 1 | . . . . . . . . . . . . . . . . . . 1 Self-Inflicted Damage 878 | . . 228 103 . 35 48 79 . . . 193 53 21 . . . . 118 Shots 18 | . . 2 5 . 1 1 2 . . . 2 4 . . . . . 1 Rammed 6 | 1 . . . . . . . . . . 1 2 2 . . . . . Targets Rammed 6 | 1 . . . . . . . . . . 1 2 2 . . . . . Kicked . | . . . . . . . . . . . . . . . . . . . Crushed . | . . . . . . . . . . . . . . . . . . . Highest Temperature 369 | 20 138 289 299 . 42 6 198 . . . 178 125 211 220 367 323 181 369 Average Temperature 83 | 15 37 90 81 . 11 6 104 . . . 70 45 97 86 94 87 83 103 Received Heat Transfer 4841 | . 18 246 423 . 702 261 396 . . 27 150 1149 . 18 116 804 . 531 Effects 3 | . . 2 . . . . . . . . . . . . 1 . . . Energy Bleed 3 | . . 2 . . . . . . . . . . . . 1 . . . Siege Activations . | . . . . . . . . . . . . . . . . . . . Robots Corrupted 4 | . . . . . . . . . . . . 2 . . 1 1 . . Combat Hostiles 4 | . . . . . . . . . . . . 2 . . 1 1 . . Parts Fried 12 | . . . . . . . . . . . . 8 . . 1 2 . 1 Impact Corruptions . | . . . . . . . . . . . . . . . . . . . Robots Melted 2 | . . . . . . . 1 . . . . . . . . . . 1 Combat Hostiles 1 | . . . . . . . . . . . . . . . . . . 1 Parts Melted 27 | . . 2 4 . 8 . 1 . . 1 1 3 . . . 4 . 3 Heat Transferred 21887 | 25 372 962 1406 . 3885 337 1073 . 3885 298 1364 1505 50 . 555 4107 222 1841 Parts Sabotaged . | . . . . . . . . . . . . . . . . . . . Parts Stolen . | . . . . . . . . . . . . . . . . . . . Parts Stripped . | . . . . . . . . . . . . . . . . . . . Power Chain Reactions 1 | . . . . . . . . . . . . . 1 . . . . . Missiles Intercepted . | . . . . . . . . . . . . . . . . . . . Alert | -11 -10 -9 -8 -7 -7 -7 -7 -6 -6 -6 -5 -4 -4 -4 -4 -3 -2 -2 ------- Run | Scr Mat Mat Mat Fac Gar Fac Gar Fac Was Fac Fac Fac Was Fac Ext Res Res Tes Peak Influence 2428 | 5 130 303 787 353 1171 789 920 507 792 431 129 900 2428 1718 869 501 264 178 Average Influence 423 | 1 52 94 428 353 826 688 649 499 614 189 27 256 1357 1700 754 311 203 91 Maximum Alert Level 5 | . . 1 3 1 4 3 3 2 3 2 . 3 5 5 3 2 1 . Low Security (%) 42 | 100 100 87 9 . . . . . 6 64 100 61 8 . . 16 30 100 Level 1 12 | . . 12 33 100 10 . . . 2 5 . 11 7 . . 47 69 . Level 2 23 | . . . 43 . 24 73 68 100 51 29 . 10 26 . 21 35 . . Level 3 14 | . . . 13 . 43 26 31 . 39 . . 15 5 . 78 . . . Level 4 2 | . . . . . 21 . . . . . . . 6 . . . . . Level 5 3 | . . . . . . . . . . . . . 45 100 . . . . High Security . | . . . . . . . . . . . . . . . . . . . Max Security . | . . . . . . . . . . . . . . . . . . . Squads Dispatched 59 | . 2 2 4 . . 4 . . . 4 3 15 . 3 1 5 2 14 Investigation 5 | . . 1 . . . . . . . . . 1 . . 1 1 1 . Extermination 16 | . . . . . . 1 . . . 2 2 5 . 1 . 2 1 2 Reinforcement 22 | . 2 1 4 . . 1 . . . 2 1 5 . . . 1 . 5 Assault 6 | . . . . . . 2 . . . . . 1 . 2 . . . 1 Garrison 10 | . . . . . . . . . . . . 3 . . . 1 . 6 Intercept . | . . . . . . . . . . . . . . . . . . . Construction Impeded 6 | . . . 1 . . 1 . . . . . 3 . . . 1 . . Haulers Reinforced 1 | . . . . . . . . . . . . 1 . . . . . . Stealth | -11 -10 -9 -8 -7 -7 -7 -7 -6 -6 -6 -5 -4 -4 -4 -4 -3 -2 -2 --------- Run | Scr Mat Mat Mat Fac Gar Fac Gar Fac Was Fac Fac Fac Was Fac Ext Res Res Tes Distress Signals 24 | . 2 . 5 . . . . . . . . 5 . . 5 6 . 1 Communications Jammed . | . . . . . . . . . . . . . . . . . . . Distress Signals . | . . . . . . . . . . . . . . . . . . . Times Spotted 413 | . 23 26 48 . 47 17 22 . 5 12 11 82 5 2 15 49 2 47 Peak Tracking Total 12 | . 4 4 9 . 6 6 6 . 2 3 3 12 3 5 6 9 2 9 Tactical Retreats 40 | . 2 3 7 . 14 . . . . . 3 3 . . . 8 . . Traps | -11 -10 -9 -8 -7 -7 -7 -7 -6 -6 -6 -5 -4 -4 -4 -4 -3 -2 -2 ------- Run | Scr Mat Mat Mat Fac Gar Fac Gar Fac Was Fac Fac Fac Was Fac Ext Res Res Tes Traps Triggered 43 | . 1 1 . . 12 6 9 1 . . 2 1 . 1 . 6 . 3 Indirectly . | . . . . . . . . . . . . . . . . . . . Trap Hack Attempts . | . . . . . . . . . . . . . . . . . . . Triggered . | . . . . . . . . . . . . . . . . . . . Disarmed . | . . . . . . . . . . . . . . . . . . . Reprogrammed . | . . . . . . . . . . . . . . . . . . . Reused . | . . . . . . . . . . . . . . . . . . . Traps Extracted . | . . . . . . . . . . . . . . . . . . . Installed . | . . . . . . . . . . . . . . . . . . . Triggered . | . . . . . . . . . . . . . . . . . . . Machines | -11 -10 -9 -8 -7 -7 -7 -7 -6 -6 -6 -5 -4 -4 -4 -4 -3 -2 -2 ---------- Run | Scr Mat Mat Mat Fac Gar Fac Gar Fac Was Fac Fac Fac Was Fac Ext Res Res Tes Machines Disabled 39 | . . 2 5 . 8 6 4 . . . 2 3 . . 1 3 . 5 Max in Single Turn 3 | . . 2 1 . 1 3 1 . . . 2 2 . . . 1 . 1 Garrison Access 2 | . . . . . . . . . . 1 . . . . . 1 . . Garrison Relay 8 | . . . . . 5 . 3 . . . . . . . . . . . Machines Sabotaged . | . . . . . . . . . . . . . . . . . . . Garrisons Compromised . | . . . . . . . . . . . . . . . . . . . Overloaded Fab Kills . | . . . . . . . . . . . . . . . . . . . Fab Network Shutdowns . | . . . . . . . . . . . . . . . . . . . Hacking | -11 -10 -9 -8 -7 -7 -7 -7 -6 -6 -6 -5 -4 -4 -4 -4 -3 -2 -2 --------- Run | Scr Mat Mat Mat Fac Gar Fac Gar Fac Was Fac Fac Fac Was Fac Ext Res Res Tes Machines Accessed 54 | . 3 9 3 1 . 3 . 2 . 7 2 5 . 1 12 4 . 2 Terminals 39 | . 3 8 3 . . 1 . . . 5 1 1 . 1 12 2 . 2 Fabricators 5 | . . . . . . 1 . . . 1 1 2 . . . . . . Repair Stations 1 | . . . . . . . . 1 . . . . . . . . . . Recycling Units 1 | . . . . . . . . . . . . 1 . . . . . . Scanalyzers 2 | . . 1 . . . . . 1 . . . . . . . . . . Garrison Access 6 | . . . . 1 . 1 . . . 1 . 1 . . . 2 . . Total Hacks 146 | . 8 29 6 2 . 6 . 4 . 18 7 14 . 2 38 6 . 6 Successful 90 | . 3 22 5 1 . 3 . 3 . 8 5 11 . . 20 3 . 6 Failed 56 | . 5 7 1 1 . 3 . 1 . 10 2 3 . 2 18 3 . . Catastrophic 11 | . . . . . . 1 . . . 1 2 1 . . 5 1 . . Database Lockouts . | . . . . . . . . . . . . . . . . . . . Manual 70 | . 6 14 1 . . . . . . 8 5 4 . 1 26 1 . 4 Terminals 117 | . 8 27 6 . . 3 . . . 15 6 3 . 2 38 3 . 6 Fabricators 9 | . . . . . . 1 . . . 1 1 6 . . . . . . Repair Stations 2 | . . . . . . . . 2 . . . . . . . . . . Recycling Units 2 | . . . . . . . . . . . . 2 . . . . . . Scanalyzers 4 | . . 2 . . . . . 2 . . . . . . . . . . Garrison Access 12 | . . . . 2 . 2 . . . 2 . 3 . . . 3 . . Terminal Hacks 45 | . 3 13 4 . . 1 . . . 3 2 3 . . 12 1 . 3 Part Schematic 3 | . 1 1 . . . . . . . . . . . . . . . 1 Prototype ID Bank 2 | . . 1 . . . . . . . . . . . . . 1 . . Open Door 6 | . . . . . . . . . . . . . . . 5 . . 1 Branch Access Points 1 | . . . 1 . . . . . . . . . . . . . . . Emergency Access Points 2 | . . 1 . . . . . . . . 1 . . . . . . . Terminal Index 1 | . . 1 . . . . . . . . . . . . . . . . Alert Level 1 | . . . 1 . . . . . . . . . . . . . . . Unreport Threat 9 | . 1 1 . . . 1 . . . 1 . 3 . . 2 . . . Locate Traps 9 | . 1 2 . . . . . . . 1 1 . . . 3 . . 1 Surveillance Status 1 | . . 1 . . . . . . . . . . . . . . . . Investigation Status 1 | . . 1 . . . . . . . . . . . . . . . . Recall Investigation 1 | . . 1 . . . . . . . . . . . . . . . . Hauler Manifests 1 | . . 1 . . . . . . . . . . . . . . . . Zone Layout 7 | . . 2 2 . . . . . . 1 . . . . 2 . . . Fabricator Hacks 5 | . . . . . . . . . . . 1 4 . . . . . . Load Schematic 3 | . . . . . . . . . . . 1 2 . . . . . . Build 2 | . . . . . . . . . . . . 2 . . . . . . Repair Station Hacks 1 | . . . . . . . . 1 . . . . . . . . . . Scan Component 1 | . . . . . . . . 1 . . . . . . . . . . Recycling Unit Hacks . | . . . . . . . . . . . . . . . . . . . Scanalyzer 4 | . . 2 . . . . . 2 . . . . . . . . . . Insert Component 2 | . . 1 . . . . . 1 . . . . . . . . . . Analyze 2 | . . 1 . . . . . 1 . . . . . . . . . . Garrison Access Hacks 8 | . . . . 1 . 2 . . . 2 . 1 . . . 2 . . Unlock Access 2 | . . . . 1 . 1 . . . . . . . . . . . . Seal Access 2 | . . . . . . . . . . 1 . . . . . 1 . . Coupler Status 4 | . . . . . . 1 . . . 1 . 1 . . . 1 . . Unauthorized Hacks 27 | . . 7 1 . . . . . . 3 2 3 . . 8 . . 3 Terminals 24 | . . 7 1 . . . . . . 3 2 . . . 8 . . 3 Track 9 | . . 3 . . . . . . . . 1 . . . 4 . . 1 Botnet 15 | . . 4 1 . . . . . . 3 1 . . . 4 . . 2 Fabricators 2 | . . . . . . . . . . . . 2 . . . . . . Prioritize 1 | . . . . . . . . . . . . 1 . . . . . . Siphon 1 | . . . . . . . . . . . . 1 . . . . . . Repair Stations . | . . . . . . . . . . . . . . . . . . . Recycling Units . | . . . . . . . . . . . . . . . . . . . Scanalyzers . | . . . . . . . . . . . . . . . . . . . Garrison Access 1 | . . . . . . . . . . . . 1 . . . . . . Reprogram 1 | . . . . . . . . . . . . 1 . . . . . . Data Cores Recovered 1 | . . . . . . . . . . 1 . . . . . . . . Used . | . . . . . . . . . . . . . . . . . . . Hacking Detections 46 | . 3 8 3 1 . 3 . 2 . 6 1 3 . 1 10 3 . 2 Full Trace Events 4 | . . 1 . . . . . . . . . 1 . . 1 1 . . Feedback Events . | . . . . . . . . . . . . . . . . . . . Feedback Blocked . | . . . . . . . . . . . . . . . . . . . Robot Schematics Acquired . | . . . . . . . . . . . . . . . . . . . Robots Built . | . . . . . . . . . . . . . . . . . . . Matter . | . . . . . . . . . . . . . . . . . . . Time . | . . . . . . . . . . . . . . . . . . . Total Robot Build Rating . | . . . . . . . . . . . . . . . . . . . Part Schematics Acquired 15 | . 1 2 . . . . . 1 . . . . . . . . . 11 Parts Built 3 | . . . . . . . . . . . . 3 . . . . . . Matter 292 | . . . . . . . . . . . . 292 . . . . . . Time 146 | . . . . . . . . . . . . 146 . . . . . . Total Part Build Rating 8 | . . . . . . . . . . . . 8 . . . . . . Parts Repaired . | . . . . . . . . . . . . . . . . . . . Time . | . . . . . . . . . . . . . . . . . . . Parts Recycled . | . . . . . . . . . . . . . . . . . . . Recycled Matter . | . . . . . . . . . . . . . . . . . . . Retrieved Matter . | . . . . . . . . . . . . . . . . . . . Retrieved Components . | . . . . . . . . . . . . . . . . . . . Parts Scanalyzed 2 | . . 1 . . . . . 1 . . . . . . . . . . Part Schematics Acquired 2 | . . 1 . . . . . 1 . . . . . . . . . . Parts Damaged . | . . . . . . . . . . . . . . . . . . . Bothacking | -11 -10 -9 -8 -7 -7 -7 -7 -6 -6 -6 -5 -4 -4 -4 -4 -3 -2 -2 ------------ Run | Scr Mat Mat Mat Fac Gar Fac Gar Fac Was Fac Fac Fac Was Fac Ext Res Res Tes Used RIF Installer 2 | . . . . . 1 . 1 . . . . . . . . . . . Robot Detection 1 | . . . . . . . 1 . . . . . . . . . . . Robots Hacked 68 | . . . . . . 1 5 . 6 8 1 15 6 1 5 11 . 9 Non-combat 17 | . . . . . . . . . . 4 1 5 . 1 . 5 . 1 Combat 51 | . . . . . . 1 5 . 6 4 . 10 6 . 5 6 . 8 Robot Hacks Applied 88 | . . . . . . 1 5 . 9 12 1 21 7 1 5 12 . 14 parse_system 10 | . . . . . . . . . 2 2 . 1 . . 3 . . 2 find_chute 1 | . . . . . . . . . . . . 1 . . . . . . map_walls 2 | . . . . . . . . . . . . . . 1 . . . 1 map_earth 2 | . . . . . . . . . . . . . . . . 2 . . release_backups 1 | . . . . . . . . . . . . . . . . 1 . . purge_threat 2 | . . . . . . . . . . 1 . 1 . . . . . . locate_traps 1 | . . . . . . . . . . . 1 . . . . . . . disarm_traps 1 | . . . . . . . . . . . . 1 . . . . . . reprogram_traps 1 | . . . . . . . . . . 1 . . . . . . . . block_reporting 2 | . . . . . . . . . . 1 . 1 . . . . . . map_route 2 | . . . . . . . . . . 1 . 1 . . . . . . mark_security 1 | . . . . . . . . . . 1 . . . . . . . . relay_feed 1 | . . . . . . . . . . . . . . . . 1 . . disable_scanner 1 | . . . . . . . . . . . . . . . . . . 1 locate_prototypes 1 | . . . . . . . . . . . . . . . . . . 1 report_schematics 1 | . . . . . . . . . . . . . . . . . . 1 report_analyses 1 | . . . . . . . . . . . . . . . . . . 1 ignore_targets 14 | . . . . . . . . . 7 . . . 7 . . . . . find_shortcuts 1 | . . . . . . . . . . . . 1 . . . . . . find_garrison 3 | . . . . . . . . . . 2 . 1 . . . . . . scatter_targeting 5 | . . . . . . . . . . . . 3 . . 1 1 . . spike_heat 1 | . . . . . . . . . . . . 1 . . . . . . overload_power 1 | . . . . . . . . . . . . . . . . 1 . . amplify_resonance 1 | . . . . . . . . . . . . 1 . . . . . . disable_weapons 1 | . . . . . . . . . . . . . . . 1 . . . overwrite_iff 12 | . . . . . . . . . . . . 4 . . . 6 . 2 streamctrl_high 2 | . . . . . . . . . . . . 1 . . . . . 1 formatsys_low 1 | . . . . . . . . . . . . . . . . . . 1 formatsys_high 15 | . . . . . . 1 5 . . 3 . 3 . . . . . 3 Relay Couplers Released 38 | . . . . . 20 . 11 . . . . 4 . . . 3 . . Machine Destruction 31 | . . . . . 20 . 11 . . . . . . . . . . . Programmers 7 | . . . . . . . . . . . . 4 . . . 3 . . Attached 25 | . . . . . 1 1 4 2 1 2 1 4 2 . . 2 1 4 Robots Rewired 4 | . . . . . . . . . . . . . . . 4 . . . Allies Hacked 7 | . . . . . . . . . . 1 . . . . . . . 6 Hacks Repelled . | . . . . . . . . . . . . . . . . . . . Allies | -11 -10 -9 -8 -7 -7 -7 -7 -6 -6 -6 -5 -4 -4 -4 -4 -3 -2 -2 -------- Run | Scr Mat Mat Mat Fac Gar Fac Gar Fac Was Fac Fac Fac Was Fac Ext Res Res Tes Total Allies 44 | . . . . . . 1 5 . . 3 . 12 . . 11 5 . 7 Largest Group 9 | . . . . . . 1 4 1 1 2 2 4 . . 9 3 . 3 Highest-Rated Group 500 | . . . . . . 32 83 21 21 61 61 215 . . 500 230 . 184 Highest-Rated Ally 156 | . . . . . . 32 30 21 21 32 32 60 . . 156 156 . 69 Total Orders 2 | . . . . . . . . . . . . . . . . . 2 . EXPLORE 1 | . . . . . . . . . . . . . . . . . 1 . RETURN 1 | . . . . . . . . . . . . . . . . . 1 . Ally Attacks 322 | . . . . . . 18 19 . 21 25 7 78 . . 108 30 . 16 Total Damage 7377 | . . . . . . 672 344 . 588 374 140 1615 . . 2754 639 . 251 Kills 38 | . . . . . . 5 7 . . 4 . 7 . . 10 4 . 1 Allies Corrupted 1 | . . . . . . . . . . . 1 . . . . . . . Allies Melted 1 | . . . . . . . 1 . . . . . . . . . . . Intel | -11 -10 -9 -8 -7 -7 -7 -7 -6 -6 -6 -5 -4 -4 -4 -4 -3 -2 -2 ------- Run | Scr Mat Mat Mat Fac Gar Fac Gar Fac Was Fac Fac Fac Was Fac Ext Res Res Tes Robot Analysis Total . | . . . . . . . . . . . . . . . . . . . Derelict Logs Recovered . | . . . . . . . . . . . . . . . . . . . Drone Launches 2 | . . . . . . . . . . . . . . . . . 2 . Drone Recoveries . | . . . . . . . . . . . . . . . . . . . Exploration | -11 -10 -9 -8 -7 -7 -7 -7 -6 -6 -6 -5 -4 -4 -4 -4 -3 -2 -2 ------------- Run | Scr Mat Mat Mat Fac Gar Fac Gar Fac Was Fac Fac Fac Was Fac Ext Res Res Tes Turns Passed 18042 | 101 734 1773 786 17 2220 728 803 292 753 1335 1237 2110 791 302 626 1663 572 1199 Spaces Moved 7921 | 54 461 819 319 8 915 353 379 220 295 696 608 777 299 157 284 684 299 294 Core 9 | 7 . . . . 2 . . . . . . . . . . . . . Treads 5720 | 47 182 765 109 . 816 57 . . 216 696 608 775 105 157 284 316 293 294 Legs 433 | . . . . . . 296 137 . . . . . . . . . . . Wheels 1759 | . 279 54 210 8 97 . 242 220 79 . . 2 194 . . 368 6 . Hover . | . . . . . . . . . . . . . . . . . . . Flight . | . . . . . . . . . . . . . . . . . . . Fastest Speed 50 | 50 110 110 150 180 180 156 120 120 130 180 180 180 160 180 180 140 150 165 Average Speed 171 | 145 129 175 176 180 196 168 133 125 166 180 180 187 171 180 180 162 164 174 Slowest Speed 1650 | 160 160 180 205 180 1650 250 160 130 180 180 180 200 200 180 200 180 165 220 Overloaded Moves . | . . . . . . . . . . . . . . . . . . . Propulsion Burnouts . | . . . . . . . . . . . . . . . . . . . Robots Hopped . | . . . . . . . . . . . . . . . . . . . Cave-ins Triggered . | . . . . . . . . . . . . . . . . . . . Exploration Rate (%) 38 | 5 75 76 50 . 76 7 64 6 76 14 13 21 95 5 47 25 13 21 Regions Visited 18 Branch Regions 2 Pre-discovered Areas . | . . . . . . . . . . . . . . . . . . . Known Exits Taken 2 | . . . . 1 . 1 . . . . . . . . . . . . Unknown Exits Taken 10 | 1 1 1 1 . . . . . . 1 1 . . 1 1 1 1 . Scrap Searched . | . . . . . . . . . . . . . . . . . . . Spaces Dug 27 | . . 1 11 . . . . . . . 1 3 . 2 . 9 . . Terrain Destroyed 547 | . . 43 133 . 10 38 16 . 1 . 39 169 18 2 5 46 1 26 Melee 15 | . . 1 . . . . . . . . . 3 . 2 . 9 . . Projectile 84 | . . . . . . 2 . . 1 . 9 10 6 . 5 37 1 13 AOE 448 | . . 42 133 . 10 36 16 . . . 30 156 12 . . . . 13 Actions | -11 -10 -9 -8 -7 -7 -7 -7 -6 -6 -6 -5 -4 -4 -4 -4 -3 -2 -2 --------- Run | Scr Mat Mat Mat Fac Gar Fac Gar Fac Was Fac Fac Fac Was Fac Ext Res Res Tes Total 10842 | 69 547 1046 465 10 1203 448 589 238 445 768 699 1203 456 173 355 1022 366 740 Wait 797 | . 32 105 27 . 63 14 8 2 1 32 39 150 21 . 7 80 30 186 Move 7908 | 54 460 818 318 8 914 353 378 220 294 695 607 777 298 156 283 683 298 294 Hop . | . . . . . . . . . . . . . . . . . . . Pick Up 208 | 6 14 23 17 . 32 10 11 6 6 4 2 19 5 2 2 22 6 21 Fast Attach 121 | 7 1 4 1 . 7 20 5 1 2 2 2 10 8 4 8 15 7 17 Attach 148 | . 4 7 9 2 14 6 10 3 2 2 3 27 4 . 1 19 5 30 Detach 25 | . . 1 . . 1 1 . . . 2 . 15 1 . 1 3 . . Swap 117 | . 6 12 15 . 18 6 3 1 2 4 3 16 5 . 3 11 1 11 Drop 185 | . 4 18 17 . 28 10 14 5 15 7 3 10 12 6 8 13 6 9 Fire 1144 | 2 26 57 61 . 90 28 91 . 123 20 39 149 74 3 42 162 12 165 Melee 76 | . . 1 . . 2 . . . . . . 28 26 2 . 10 . 7 Ram 2 | . . . . . . . . . . . . . 2 . . . . . Kick . | . . . . . . . . . . . . . . . . . . . Crush 3 | . . . . . . . . . . . 1 2 . . . . . . Escape Stasis 107 | . . . . . 34 . 69 . . . . . . . . 4 . . Rewire . | . . . . . . . . . . . . . . . . . . . Trap . | . . . . . . . . . . . . . . . . . . . Miscellaneous 1 | . . . . . . . . . . . . . . . . . 1 . Route ------- -11/Scrapyard -10/Materials (discovered 3 exits: *Mat x3) -9/Materials (discovered 4 exits: *Mat x2 / [*Min x2]) -8/Materials -7/Factory -7/Garrison (discovered 2 exits: *Fac x2) -7/Factory -7/Garrison (discovered 2 exits: *Fac x2) -6/Factory -6/Waste -6/Factory -5/Factory -4/Factory -4/Waste -4/Factory -4/Extension -3/Research -2/Research -2/Testing History --------- Turn | Location | Event 9 | -11/Scrapyard | Discovered new exit (range 14) 102 | -11/Scrapyard | Entered Materials 273 | -10/Materials | Discovered new exit (range 16) 308 | -10/Materials | Build established: Mutant 612 | -10/Materials | Discovered new exit (range 16) 803 | -10/Materials | Discovered new exit (range 16) 836 | -10/Materials | Entered another Materials area 836 | -9/Materials | Evolved 2 slots: Utility x2 1335 | -9/Materials | Build established: Hauler-Mutant 1353 | -9/Materials | Discovered new exit (range 14) 1354 | -9/Materials | Core integrity fell below 50% 1791 | -9/Materials | Build established: Scavenger-Mutant 1943 | -9/Materials | Discovered new exit (range 12) 2144 | -9/Materials | Discovered new exit (range 19) 2162 | -9/Materials | Build established: Mutant 2239 | -9/Materials | Discovered new exit (range 3) 2372 | -9/Materials | Core integrity fell below 20% 2609 | -9/Materials | Entered another Materials area 2609 | -8/Materials | Evolved 2 slots: Propulsion x1, Utility x1 2820 | -8/Materials | Build established: Hauler-Mutant 3233 | -8/Materials | Lost 4 parts (2n1u1w) 3370 | -8/Materials | Discovered new exit (range 16) 3395 | -8/Materials | Entered Factory 3395 | -7/Factory | Evolved 2 slots: Utility x2 3412 | -7/Factory | Identified exit to Garrison 3412 | -7/Factory | Entered Garrison 3594 | -7/Garrison | Triggered checkpoint 3660 | -7/Garrison | Triggered checkpoint 3682 | -7/Garrison | Lost 5 parts (1n3u1w) 3718 | -7/Garrison | Triggered checkpoint 3751 | -7/Garrison | Destroyed 9 combat bots 3781 | -7/Garrison | Discovered new exit (range 14) 3956 | -7/Garrison | Discovered new exit (range 15) 3997 | -7/Garrison | Installed Relay Interface Framework 4050 | -7/Garrison | Triggered checkpoint 4098 | -7/Garrison | Lost 3 parts (1p1n1u) 4219 | -7/Garrison | Lost 3 parts (1n2w) 4299 | -7/Garrison | Garrison Relay disabled 4358 | -7/Garrison | Triggered checkpoint 4423 | -7/Garrison | Garrison Relay disabled 4608 | -7/Garrison | Triggered checkpoint 4652 | -7/Garrison | Garrison Relay disabled 4735 | -7/Garrison | Build established: Bothacker-Mutant 4834 | -7/Garrison | Triggered checkpoint 4952 | -7/Garrison | Garrison Relay disabled 4988 | -7/Garrison | Triggered checkpoint 5094 | -7/Garrison | Triggered checkpoint 5231 | -7/Garrison | Garrison Relay disabled 5632 | -7/Garrison | Entered Factory 6032 | -7/Factory | First assault squad dispatched 6136 | -7/Factory | Lost 4 parts (1p2n1w) 6360 | -7/Factory | Identified exit to Garrison 6360 | -7/Factory | Entered Garrison 6407 | -7/Garrison | Triggered checkpoint 6432 | -7/Garrison | Garrison Relay disabled 6540 | -7/Garrison | Triggered checkpoint 6556 | -7/Garrison | Core integrity fell below 50% 6606 | -7/Garrison | Lost 3 parts (1p1u1w) 6828 | -7/Garrison | Discovered new exit (range 8) 6874 | -7/Garrison | Triggered checkpoint 6911 | -7/Garrison | Garrison Relay disabled 6992 | -7/Garrison | Triggered checkpoint 7062 | -7/Garrison | Discovered new exit (range 10) 7080 | -7/Garrison | Expanded RIF knowledge: Robot Detection 7100 | -7/Garrison | Triggered checkpoint 7125 | -7/Garrison | Garrison Relay disabled 7163 | -7/Garrison | Entered Factory 7163 | -6/Factory | Accompanied by 1 ally 7163 | -6/Factory | Evolved 2 slots: Utility x2 7455 | -6/Factory | Sucked down chute 7455 | -6/Factory | Entered Waste 7470 | -6/Waste | 1 allies followed down the chute 7492 | -6/Waste | Spotted C-40 Crusher 7495 | -6/Waste | Spotted C-40 Crusher 7496 | -6/Waste | Spotted C-40 Crusher 7531 | -6/Waste | Spotted C-40 Crusher 7539 | -6/Waste | Spotted C-40 Crusher 7609 | -6/Waste | Destroyed C-40 Crusher 7619 | -6/Waste | Spotted C-40 Crusher 7712 | -6/Waste | Destroyed C-40 Crusher 7758 | -6/Waste | Destroyed C-40 Crusher 7782 | -6/Waste | Found Damper Plating 7852 | -6/Waste | Destroyed C-40 Crusher 7871 | -6/Waste | Found Damper Plating 7882 | -6/Waste | Destroyed C-40 Crusher 8085 | -6/Waste | Destroyed C-40 Crusher 8102 | -6/Waste | Found Damper Plating 8181 | -6/Waste | Discovered new exit (range 15) 8208 | -6/Waste | Entered Factory 9409 | -6/Factory | Discovered new exit (range 14) 9543 | -6/Factory | Entered another Factory area 9543 | -5/Factory | Accompanied by 2 allies 9543 | -5/Factory | Evolved 2 slots: Utility x2 9772 | -5/Factory | Discovered new exit (range 9) 9894 | -5/Factory | P-70 Sage assimilated allied Guardian 5a 10112 | -5/Factory | Spotted B-75 Beast 10436 | -5/Factory | System corruption reached 10% 10780 | -5/Factory | Entered another Factory area 10780 | -4/Factory | Evolved 2 slots: Utility x2 11173 | -4/Factory | Fabricated Arm. Wheel (x2) 11710 | -4/Factory | Fabricated Hrd. Heavy Armor Plating? 11928 | -4/Factory | Garrison activated, responded to threat 12558 | -4/Factory | First assault squad dispatched 12613 | -4/Factory | Lost 6 parts (1p2n1u2w) 12885 | -4/Factory | System corruption reached 10% 12890 | -4/Factory | Sucked down chute 12890 | -4/Factory | Entered Waste 12905 | -4/Waste | EMP discharged 12906 | -4/Waste | Spotted C-40 Crusher 12934 | -4/Waste | Spotted C-40 Crusher 12948 | -4/Waste | Spotted C-40 Crusher 12952 | -4/Waste | Spotted C-40 Crusher 12957 | -4/Waste | Spotted C-40 Crusher 12996 | -4/Waste | Spotted C-40 Crusher 12999 | -4/Waste | Crushed by Compactor (1 part destroyed, 2 dropped) 13005 | -4/Waste | EMP discharged 13105 | -4/Waste | EMP discharged 13105 | -4/Waste | System corruption reached 30% 13205 | -4/Waste | EMP discharged 13304 | -4/Waste | Discovered new exit (range 13) 13305 | -4/Waste | EMP discharged 13385 | -4/Waste | Destroyed C-40 Crusher 13397 | -4/Waste | Found Damper Plating 13405 | -4/Waste | EMP discharged 13424 | -4/Waste | Destroyed C-40 Crusher 13452 | -4/Waste | Destroyed C-40 Crusher 13458 | -4/Waste | Destroyed C-40 Crusher 13493 | -4/Waste | Destroyed C-40 Crusher 13505 | -4/Waste | EMP discharged 13564 | -4/Waste | Destroyed C-40 Crusher 13570 | -4/Waste | Found Damper Plating 13605 | -4/Waste | EMP discharged 13681 | -4/Waste | Entered Factory 13907 | -4/Factory | Spotted B-86 Titan 13958 | -4/Factory | Discovered new exit (range 10) 13971 | -4/Factory | Core integrity fell below 50% 13980 | -4/Factory | First assault squad dispatched 13983 | -4/Factory | Entered Extension 14199 | -4/Extension | Rescued a captive Derelict 14200 | -4/Extension | Rescued a captive Derelict 14423 | -4/Extension | Rescued A7 14442 | -4/Extension | Rescued a captive Derelict 14442 | -4/Extension | Rescued a captive Derelict 14499 | -4/Extension | Rescued a captive Derelict 14504 | -4/Extension | Rescued a captive Derelict 14518 | -4/Extension | Spotted B-86 Titan 14521 | -4/Extension | Spotted B-86 Titan 14531 | -4/Extension | Allies destroyed B-86 Titan 14538 | -4/Extension | Allies destroyed B-86 Titan 14576 | -4/Extension | Found Hvy. Reflective Plating 14602 | -4/Extension | Discovered new exit (range 3) 14609 | -4/Extension | Entered Research 14609 | -3/Research | Accompanied by 3 allies 14609 | -3/Research | Evolved 2 slots: Utility x2 14772 | -3/Research | Spotted B-86 Titan 15145 | -3/Research | Garrison activated, responded to threat 15269 | -3/Research | Lost 3 parts (2u1w) 15732 | -3/Research | Spotted B-86 Titan 15756 | -3/Research | Destroyed B-86 Titan 15784 | -3/Research | Lost 3 parts (2u1w) 15877 | -3/Research | Found Unknown Device 15877 | -3/Research | Identified Antimissile System 15978 | -3/Research | Lost 7 parts (2p1n2u2w) 16067 | -3/Research | Discovered new exit (range 20) 16260 | -3/Research | Lost 3 parts (1n1u1w) 16272 | -3/Research | Entered another Research area 16272 | -2/Research | Evolved 2 slots: Power x1, Utility x1 16691 | -2/Research | Discovered new exit (range 22) 16795 | -2/Research | Lost 5 parts (1p2u2w) 16844 | -2/Research | Entered Testing 16844 | -2/Testing | Accompanied by 2 allies 16864 | -2/Testing | Protovariant out of control (PX-H8JPX55OS6) 16893 | -2/Testing | Found Portable AFG 16963 | -2/Testing | Found SHELL Armor 16969 | -2/Testing | Found Lgt. Regenerative Plating 16973 | -2/Testing | Found Hvy. Regenerative Plating 16977 | -2/Testing | Found Hvy. Regenerative Plating 17144 | -2/Testing | P-80 Master assimilated allied Warden 9a 17147 | -2/Testing | P-80 Master assimilated allied Warden 9b 17160 | -2/Testing | Garrison activated, responded to threat 17163 | -2/Testing | System corruption reached 10% 17177 | -2/Testing | Lost 3 parts (1p1u1w) 17346 | -2/Testing | Lost 6 parts (1p4u1w) 17474 | -2/Testing | Lost 8 parts (3p2n2u1w) 17578 | -2/Testing | Garrison activated, responded to threat 17592 | -2/Testing | Core integrity fell below 50% 17723 | -2/Testing | Lost 8 parts (1p1n3u3w) 17828 | -2/Testing | System corruption reached 30% 17874 | -2/Testing | Lost 4 parts (3u1w) 17940 | -2/Testing | Found Null Cannon 17976 | -2/Testing | Scanned by Researcher 18022 | -2/Testing | Core integrity fell below 20% 18043 | -2/Testing | Self-destructed Last Messages --------------- 18039_ Biometal Leg destroyed. 18039_ U-05 Engineer lays Concrete. 18039_ Held in stasis. 18039_ U-05 Engineer lays Concrete. 18040_ System corrupted: Substantial component data lost. 18040_ Hcp. Storage Unit destroyed. 18040_ U-05 Engineer lays Concrete. 18040_ Held in stasis. 18040_ C-65 Expert is analyzing... 18040_ U-05 Engineer builds a Wall. 18040_ U-05 Engineer lays Concrete. 18041_ G-73 Enforcer suffers critical hit. 18041_ Destroyed Phase Gun. 18041_ U-05 Engineer lays Concrete. 18042_ The unstable cave ceiling collapses. 18042_ U-05 Engineer lays Concrete. 18042_ Penetrated by Slug. 18042_ Critical hit. 18042_ Null Cannon destroyed. 18043_ K-01 Serf collects debris. Map ----- +----------------------------------------------------+ | ![!!%[% =[% """ #????????????????????? | | ##########%=####### """ #????????????????????? | | ???????# #!%##????# """ ###??????????????????? | | ????????##![####### ^ ""#??????????????????? | | ????????##%%[#!!=## """g ""#??????????????????? | | ?????????#%=%!/[=## """ ""#??????????????????? | | ????????##[=*!!=[## """ T#??????????????????? | | ????????##![%|"#!## ""#??????????????????? | | ?????????##########^ """ ""#??????????????????? | | ??????????????????# """ ""#??????????????????? | | ??????????????????# ^""" c###??????????????????? | | ??????????????????# ^ #????????????????????? | | ??????????????????# c""" ####?????????????????? | | ??????????????????# """ "" #?????????????????? | | ?????????????????## """ """#?????????????????? | | ???????????######## ggg c T"#?????????????????? | | ???????????#""""" # g """#?????????????????? | | ???????????#" " " # "" #?????????????????? | | ???????????#" + m####?????????????????? | | ???????????##"" # ##???????????????????? | | ????????????# = # != = ##???????????????????? | | ????????????#"" " # *%!* u##???????????????????? | | ??????????????##### u%u u###??????????????????? | | ?????????????????## ==* # #??????????????????? | | ??????????????????# [ #??????????????????? | | ??????????????????# *@w #??????????????????? | | ??????????????????# k %=[ #??????????????????? | | ??????????????????#c % [ ##??????????????????? | | ???????????????? """u #???????????????????? | | ????????????? k R """*%= #???????????????????? | | ????????????####### """!!|;#???????????????????? | | ??????????????????# [!*%;#???????????????????? | | ????????????????? """!%!;#???????????????????? | | ???????????????? """*|= #???????????????????? | | ???????????????# """ = #???????????????????? | | ???????????????#### #???????????????????? | | ??????????????????# """ #???????????????????? | | ??????????????????#] """ ;???????????????????? | | ??????????????????# "?" ;???????????????????? | | ???????????????????^ ?? h#???????????????????? | | ??????????????????? ??" ???????????????????? | | ??????????????????? ^??" R ???????????????????? | | ????????????????????????" ???????????????????? | | ????????????????????????? ???????????????????? | | ????????????????????????? "??????????????????? | | ????????????????????????? ??????????????????? | | ????????????????????????? ^???????????????????? | | ????????????????????????? ??????????????????????? | | ?????????????????????????????????????????????????? | | ?????????????????????^???????????????????????????? | +----------------------------------------------------+ Best States ------------- Heat Dissipation 112 Coolant Potential 100 Energy Generation 54 Energy Capacity 880 Matter Stores 624 Matter Capacity 850 Sight Range 23 Terrain Scan Density 10 ECM Strength 3 Power Amplification 30 Additional Mass Support 12 Armor Coverage 1800 Resistance: TH 25 Resistance: EM 90 Phase Shifting 10 Evasion (%) 50 Targeting Accuracy 14 Target Analysis 8 Core Analysis 10 Recoil Reduction 3 Energy Filtering 50 Particle Charging 25 Offensive Hacking 14 Defensive Hacking 22 Item Schematics ----------------- Hcp. Storage Unit | -10/Materials | Hacked Particle Charger | -9/Materials | Scanalyzed Arm. Wheel | -9/Materials | Hacked Hrd. Heavy Armor Plating | -6/Factory | Scanalyzed Thunder Hammer | -2/Testing | Reported Impulse Thruster | -2/Testing | Reported Imp. Matter Neutralizer | -2/Testing | Reported Antimatter Reactor | -2/Testing | Reported Imp. Diametric Drive | -2/Testing | Reported Hvy. Dispersion Rifle | -2/Testing | Reported Imp. Antigrav System | -2/Testing | Reported Exp. Matter Compressor | -2/Testing | Reported Electron Diverter | -2/Testing | Reported Adv. Plasma Rifle | -2/Testing | Reported Lgt. Regenerative Plating | -2/Testing | Hacked Robot Schematics ------------------ None Fabricated ------------ Arm. Wheel | x2 | -4/Factory Hrd. Heavy Armor Plating | x1 | -4/Factory Alien Tech Used ----------------- None Achievements -------------- Assassin Challenges ------------ None Game ------ Seed ShadeBarrageFacilitator Manual? 0 Play Time 04:17:21 Cumulative 103.8 hours Start 2020.09.06 @ 12:58:08 End 2020.09.11 @ 11:25:15 Sessions 15 Manual Loads 0 Difficulty Rogue Special Mode None Game No. 60 Rogue 60 Adventurer 0 Explorer 0 Win Type - Total 1 Types 1/0/0/0/0/0/0 Lore% 42 Gallery% 66 Achievement% 50 Wizard Run 0 Options --------- ASCII 0 Keyboard 0 Movement Numpad Keybinds 0 Fullscreen 1 Font 18/SmallcapsGlow Map View 76x50 Tactical HUD 1 Map Filters NONE Filters NONE Steam 1 RUN: 73ea97b9-36e7-461b-82e2-2bb353b72370